fUST/lending_fUST_20260502
["ID","MTS","AMOUNT","RATE_DAILY","PERIOD"]
[421449945,1777671039000,-500.0,0.00014547,2]
[421449940,1777671039000,-500.0,0.00014546,2]
[421449943,1777671039000,-500.0,0.00014546,2]
[421449936,1777671039000,-500.0,0.00014546,2]
[421449944,1777671039000,-244890.77896393,0.00014547,2]
[421449941,1777671039000,-500.0,0.00014546,2]
[421449933,1777671039000,-316.88532841,0.00014546,2]
[421449937,1777671039000,-500.0,0.00014546,2]
[421450033,1777671047000,-2449.92787555,0.00014548,2]
[421450044,1777671229000,2069.10268675,0.00021918,120]
[421450047,1777671703000,988.04678609,0.00021918,120]
[421450079,1777672232000,-579.562833,0.0001283,2]
[421450078,1777672232000,-300.0,0.00012829,2]
[421450076,1777672232000,-4650.92552444,0.00012701,2]
[421450073,1777672232000,-349.07447556,0.00012701,2]
[421450193,1777672241000,-213.749435,0.00013699,2]
[421450194,1777672241000,-1000.0,0.00013699,2]
[421450192,1777672241000,-168.74894313,0.0001301,2]
[421450196,1777672241000,-1059.21152058,0.00014448,2]
[421450197,1777672241000,-300.18062377,0.00014448,2]
[421450195,1777672241000,-212.85,0.00014068,2]
[421450228,1777672243000,-4833.46715706,0.00014448,2]
[421450234,1777672243000,-979.33471611,0.00014546,2]
[421450229,1777672243000,-151.0,0.000145,2]
[421450232,1777672243000,-500.0,0.00014546,2]
[421450231,1777672243000,-500.0,0.00014545,2]
[421450233,1777672243000,-500.0,0.00014546,2]
[421450230,1777672243000,-500.0,0.00014545,2]
[421450226,1777672243000,-185.74,0.00014068,2]
[421450227,1777672243000,-1234.26,0.00014448,2]
[421450266,1777672247000,-500.0,0.00014546,2]
[421450261,1777672247000,-500.0,0.00014546,2]
[421450268,1777672247000,-500.0,0.00014546,2]
[421450258,1777672247000,-500.0,0.00014546,2]
[421450272,1777672247000,-500.0,0.00014546,2]
[421450256,1777672247000,-500.0,0.00014546,2]
[421450242,1777672247000,-1180.99528389,0.00014546,2]
[421450264,1777672247000,-500.0,0.00014546,2]
[421450248,1777672247000,-500.0,0.00014546,2]
[421450252,1777672247000,-500.0,0.00014546,2]
[421450250,1777672247000,-500.0,0.00014546,2]
[421450246,1777672247000,-500.0,0.00014546,2]
[421450254,1777672247000,-500.0,0.00014546,2]
[421450270,1777672247000,-500.0,0.00014546,2]
[421450244,1777672247000,-7557.32409221,0.00014546,2]
[421450290,1777672247000,-22570.0,0.00014598,2]
[421450274,1777672247000,-195.52272931,0.00014546,2]
[421450295,1777672247000,-500.0,0.00014599,2]
[421450294,1777672247000,-500.0,0.00014599,2]
[421450278,1777672247000,-193.1021352,0.00014548,2]
[421450296,1777672247000,-500.0,0.00014599,2]
[421450292,1777672247000,-287.3726786,0.00014599,2]
[421450298,1777672247000,-8164.58653875,0.000146,2]
[421450276,1777672247000,-4434.65591202,0.00014547,2]
[421450285,1777672247000,-341.20760283,0.00014597,2]
[421450280,1777672247000,-193.1021351,0.00014548,2]
[421450287,1777672247000,-356.64589342,0.00014597,2]
[421450297,1777672247000,-471.81972989,0.00014599,2]
[421450282,1777672247000,-3297.5210074,0.00014548,2]
[421450283,1777672247000,-5086.4722299,0.00014548,2]
[421450335,1777673431000,-475.24047514,0.00012389,2]
[421450337,1777673431000,-244.51952486,0.00012414,2]
[421450454,1777673438000,-164.173904,0.00014412,2]
[421450451,1777673438000,-500.0,0.00014411,2]
[421450462,1777673438000,-500.0,0.00014545,2]
[421450453,1777673438000,-14874.5337724,0.00014412,2]
[421450449,1777673438000,-600.0,0.0001425,2]
[421450461,1777673438000,-216.10513454,0.00014545,2]
[421450459,1777673438000,-500.0,0.00014545,2]
[421450458,1777673438000,-457.093439,0.00014489,2]
[421450460,1777673438000,-2070.32,0.00014545,2]
[421450455,1777673438000,-376.111,0.00014489,2]
[421450456,1777673438000,-151.0,0.00014489,2]
[421450457,1777673438000,-456.0872351,0.00014489,2]
[421450452,1777673438000,-1004.1290641,0.00014412,2]
[421450469,1777673438000,-502.12,0.00014546,2]
[421450473,1777673438000,-502.12,0.00014546,2]
[421450464,1777673438000,-502.12,0.00014546,2]
[421450463,1777673438000,-155.0,0.00014546,2]
[421450472,1777673438000,-502.12,0.00014546,2]
[421450475,1777673438000,-502.12,0.00014546,2]
[421450450,1777673438000,-6942.12338343,0.00014389,2]
[421450468,1777673438000,-502.12,0.00014546,2]
[421450471,1777673438000,-502.12,0.00014546,2]
[421450466,1777673438000,-502.12,0.00014546,2]
[421450467,1777673438000,-502.12,0.00014546,2]
[421450474,1777673438000,-502.12,0.00014546,2]
[421450476,1777673438000,-502.12,0.00014546,2]
[421450470,1777673438000,-502.12,0.00014546,2]
[421450465,1777673438000,-502.12,0.00014546,2]
[421450446,1777673438000,-510.84831096,0.0001406,2]
[421450438,1777673438000,-300.0,0.00013972,2]
[421450444,1777673438000,-300.0,0.00013972,2]
[421450477,1777673438000,-502.12,0.00014546,2]
[421450419,1777673438000,-1425.37059902,0.00012514,2]
[421450420,1777673438000,-597.0,0.00012514,2]
[421450418,1777673438000,-2914.03759829,0.00012414,2]
[421450421,1777673438000,-183.97712583,0.00012704,2]
[421450426,1777673438000,-1200.0,0.00013698,2]
[421450422,1777673438000,-257.31,0.00013002,2]
[421450427,1777673438000,-213.749434,0.00013699,2]
[421450424,1777673438000,-200.0,0.00013519,2]
[421450425,1777673438000,-300.0,0.00013698,2]
[421450423,1777673438000,-200.0,0.00013445,2]
[421450429,1777673438000,-1000.0,0.00013699,2]
[421450428,1777673438000,-1000.0,0.00013699,2]
[421450448,1777673438000,-4593.03716382,0.0001406,2]
[421450431,1777673438000,-300.0,0.00013972,2]
[421450430,1777673438000,-300.0,0.00013972,2]
[421450434,1777673438000,-300.0,0.00013972,2]
[421450432,1777673438000,-300.0,0.00013972,2]
[421450435,1777673438000,-300.0,0.00013972,2]
[421450436,1777673438000,-300.0,0.00013972,2]
[421450439,1777673438000,-300.0,0.00013972,2]
[421450440,1777673438000,-300.0,0.00013972,2]
[421450437,1777673438000,-300.0,0.00013972,2]
[421450441,1777673438000,-300.0,0.00013972,2]
[421450442,1777673438000,-300.0,0.00013972,2]
[421450445,1777673438000,-200.0,0.00014037,2]
[421450447,1777673438000,-2043.39324383,0.0001406,2]
[421450443,1777673438000,-300.0,0.00013972,2]
[421450433,1777673438000,-300.0,0.00013972,2]
[421450481,1777673438000,-502.12,0.00014546,2]
[421450501,1777673438000,-2000.0,0.00014547,2]
[421450479,1777673438000,-502.12,0.00014546,2]
[421450514,1777673438000,-1957.856,0.00014593,2]
[421450516,1777673438000,-537.6845,0.00014593,2]
[421450515,1777673438000,-162.380719,0.00014593,2]
[421450518,1777673438000,-445.202766,0.00014593,2]
[421450520,1777673438000,-151.0,0.00014593,2]
[421450517,1777673438000,-151.0,0.00014593,2]
[421450519,1777673438000,-537.6845,0.00014593,2]
[421450521,1777673438000,-151.0,0.00014593,2]
[421450523,1777673438000,-151.0,0.00014593,2]
[421450522,1777673438000,-151.0,0.00014593,2]
[421450526,1777673438000,-151.0,0.00014593,2]
[421450528,1777673438000,-151.0,0.00014593,2]
[421450524,1777673438000,-151.0,0.00014593,2]
[421450512,1777673438000,-1361.0,0.00014547,2]
[421450525,1777673438000,-151.0,0.00014593,2]
[421450527,1777673438000,-151.0,0.00014593,2]
[421450530,1777673438000,-151.0,0.00014593,2]
[421450532,1777673438000,-151.0,0.00014593,2]
[421450534,1777673438000,-156.89658255,0.00014593,2]
[421450531,1777673438000,-151.0,0.00014593,2]
[421450533,1777673438000,-151.0,0.00014593,2]
[421450536,1777673438000,-151.0,0.00014593,2]
[421450535,1777673438000,-151.0,0.00014593,2]
[421450537,1777673438000,-151.0,0.00014593,2]
[421450538,1777673438000,-151.0,0.00014593,2]
[421450540,1777673438000,-151.0,0.00014593,2]
[421450539,1777673438000,-151.0,0.00014593,2]
[421450541,1777673438000,-2150.738,0.00014593,2]
[421450478,1777673438000,-502.12,0.00014546,2]
[421450513,1777673438000,-500.0,0.00014547,2]
[421450529,1777673438000,-151.0,0.00014593,2]
[421450510,1777673438000,-2000.0,0.00014547,2]
[421450511,1777673438000,-2000.0,0.00014547,2]
[421450480,1777673438000,-502.12,0.00014546,2]
[421450483,1777673438000,-502.12,0.00014546,2]
[421450482,1777673438000,-502.12,0.00014546,2]
[421450486,1777673438000,-502.12,0.00014546,2]
[421450485,1777673438000,-502.12,0.00014546,2]
[421450487,1777673438000,-502.12,0.00014546,2]
[421450488,1777673438000,-500.0,0.00014546,2]
[421450493,1777673438000,-500.0,0.00014546,2]
[421450494,1777673438000,-500.0,0.00014546,2]
[421450489,1777673438000,-500.0,0.00014546,2]
[421450492,1777673438000,-500.0,0.00014546,2]
[421450490,1777673438000,-500.0,0.00014546,2]
[421450491,1777673438000,-500.0,0.00014546,2]
[421450484,1777673438000,-502.12,0.00014546,2]
[421450500,1777673438000,-2000.0,0.00014547,2]
[421450509,1777673438000,-2000.0,0.00014547,2]
[421450497,1777673438000,-568.56,0.00014546,2]
[421450507,1777673438000,-2000.0,0.00014547,2]
[421450504,1777673438000,-2000.0,0.00014547,2]
[421450503,1777673438000,-2000.0,0.00014547,2]
[421450506,1777673438000,-2000.0,0.00014547,2]
[421450505,1777673438000,-2000.0,0.00014547,2]
[421450502,1777673438000,-2000.0,0.00014547,2]
[421450498,1777673438000,-500.0,0.00014546,2]
[421450496,1777673438000,-500.0,0.00014546,2]
[421450499,1777673438000,-2000.0,0.00014547,2]
[421450495,1777673438000,-500.0,0.00014546,2]
[421450508,1777673438000,-2000.0,0.00014547,2]
[421450561,1777673439000,-2183.31810187,0.00014758,2]
[421450568,1777673439000,-2347.87260389,0.00014868,2]
[421450564,1777673439000,-621.78829552,0.00014813,2]
[421450563,1777673439000,-2264.10087164,0.00014813,2]
[421450566,1777673439000,-292.75039468,0.00014848,2]
[421450565,1777673439000,-500.0,0.00014821,2]
[421450567,1777673439000,-178.29146439,0.00014868,2]
[421450569,1777673439000,-644.79446246,0.00014868,2]
[421450570,1777673439000,-500.0,0.0001488,2]
[421450576,1777673439000,-300.0,0.00015012,2]
[421450573,1777673439000,-2434.74389024,0.00014923,2]
[421450579,1777673439000,-2070.32,0.00015027,2]
[421450577,1777673439000,-500.0,0.00015027,2]
[421450562,1777673439000,-599.60298507,0.00014758,2]
[421450572,1777673439000,-183.86,0.00014896,2]
[421450560,1777673439000,-217.09300848,0.00014704,2]
[421450543,1777673439000,-201.16087502,0.00014645,2]
[421450559,1777673439000,-578.20924308,0.00014703,2]
[421450542,1777673439000,-500.0,0.00014645,2]
[421450544,1777673439000,-500.0,0.00014645,2]
[421450546,1777673439000,-500.0,0.00014645,2]
[421450547,1777673439000,-500.0,0.00014645,2]
[421450548,1777673439000,-322.62853742,0.00014645,2]
[421450571,1777673439000,-2070.32,0.0001488,2]
[421450558,1777673439000,-2105.41764886,0.00014703,2]
[421450551,1777673439000,-500.0,0.00014646,2]
[421450550,1777673439000,-500.0,0.00014646,2]
[421450553,1777673439000,-2070.32,0.00014646,2]
[421450552,1777673439000,-2070.32,0.00014646,2]
[421450556,1777673439000,-2030.296672,0.00014648,2]
[421450555,1777673439000,-2070.32,0.00014646,2]
[421450557,1777673439000,-557.5788265,0.00014648,2]
[421450549,1777673439000,-500.0,0.00014646,2]
[421450578,1777673439000,-151.0,0.00015027,2]
[421450545,1777673439000,-220.98380949,0.00014645,2]
[421450580,1777673439000,-1138.0,0.00015067,2]
[421450601,1777673439000,-151.5,0.00015387,2]
[421450603,1777673439000,-2312.83697232,0.00015689,2]
[421450604,1777673439000,-796.0,0.000157,2]
[421450606,1777673439000,-505.31244922,0.00015862,2]
[421450605,1777673439000,-856.48166811,0.000158,2]
[421450608,1777673439000,-2070.32,0.00015862,2]
[421450609,1777673439000,-2070.32,0.00015862,2]
[421450607,1777673439000,-2070.32,0.00015862,2]
[421450611,1777673439000,-30000.0,0.00015863,2]
[421450613,1777673439000,-30096.40184263,0.00015863,7]
[421450615,1777673439000,-160.0,0.00015896,2]
[421450616,1777673439000,-8126.260515,0.00015896,2]
[421450618,1777673439000,-5000.0,0.00015896,2]
[421450617,1777673439000,-5134.82889269,0.00015896,2]
[421450574,1777673439000,-537.68449999,0.00014923,2]
[421450602,1777673439000,-720.0,0.00015675,2]
[421450600,1777673439000,-536.01654834,0.00015369,2]
[421450575,1777673439000,-1177.94999813,0.00014978,2]
[421450594,1777673439000,-2230.315306,0.00015141,2]
[421450581,1777673439000,-171.925906,0.00015068,2]
[421450583,1777673439000,-155.52061053,0.00015113,2]
[421450582,1777673439000,-500.0,0.00015095,2]
[421450586,1777673439000,-160.4857105,0.00015113,2]
[421450588,1777673439000,-154.03599555,0.00015113,2]
[421450587,1777673439000,-209.6310217,0.00015113,2]
[421450590,1777673439000,-205.3201709,0.00015113,2]
[421450599,1777673439000,-151.0,0.00015253,2]
[421450591,1777673439000,-221.89232786,0.00015113,2]
[421450593,1777673439000,-156.20769032,0.00015113,2]
[421450592,1777673439000,-151.5,0.00015113,2]
[421450595,1777673439000,-500.0,0.00015194,2]
[421450597,1777673439000,-6942.12338338,0.00015215,2]
[421450598,1777673439000,-325.6125061,0.00015253,2]
[421450596,1777673439000,-2070.32,0.00015194,2]
[421450589,1777673439000,-155.7883361,0.00015113,2]
[421450619,1777673440000,-500.0,0.00014545,2]
[421450620,1777673440000,-2932.53169878,0.00015896,2]
[421450622,1777673440000,-1000.0,0.00015896,2]
[421450621,1777673440000,-716.17832852,0.00015896,2]
[421450632,1777673442000,-486.74610981,0.00015896,2]
[421450630,1777673442000,-564.97556165,0.00015896,2]
[421450631,1777673442000,-160.0,0.00015896,2]
[421450629,1777673442000,-744.00654836,0.00015896,2]
[421450639,1777673443000,-869.480831,0.00015905,7]
[421450633,1777673443000,-4119.01448785,0.00015896,2]
[421450634,1777673443000,-225.66112634,0.00015896,2]
[421450636,1777673443000,-888.74567891,0.00015896,2]
[421450637,1777673443000,-160.0,0.00015905,7]
[421450635,1777673443000,-8614.09777009,0.00015896,2]
[421450640,1777673443000,-151.0,0.00015955,2]
[421450642,1777673443000,-151.0,0.00015955,2]
[421450643,1777673443000,-3000.0,0.00016,2]
[421450645,1777673443000,-2070.32,0.00016002,2]
[421450647,1777673443000,-49.57026399,0.0001601,2]
[421450646,1777673443000,-2070.32,0.00016002,2]
[421450644,1777673443000,-155.0,0.00016001,2]
[421450641,1777673443000,-151.0,0.00015955,2]
[421450638,1777673443000,-514.740415,0.00015905,7]
[421450664,1777673446000,-2255.29103181,0.0001601,2]
[421450665,1777673446000,-2070.32,0.00016019,2]
[421450666,1777673446000,-3000.0,0.0001602,2]
[421450663,1777673446000,-695.1387042,0.0001601,2]
[421450667,1777673446000,-3000.0,0.0001603,2]
[421450668,1777673446000,-3000.0,0.0001604,2]
[421450672,1777673446000,-2070.32,0.00016069,2]
[421450669,1777673446000,-6942.12338338,0.00016042,2]
[421450671,1777673446000,-3000.0,0.0001606,2]
[421450673,1777673446000,-2918.38050335,0.0001607,2]
[421450674,1777673446000,-81.61949665,0.0001607,2]
[421450675,1777673446000,-325.6125061,0.00016075,2]
[421450676,1777673446000,-3000.0,0.0001608,2]
[421450678,1777673446000,-1165.19974755,0.000161,2]
[421450677,1777673446000,-3000.0,0.0001609,2]
[421450670,1777673446000,-3000.0,0.0001605,2]
[421450702,1777674631000,-187.89110377,0.00013159,2]
[421450699,1777674631000,-576.63314209,0.00013026,2]
[421450698,1777674631000,-3823.18861969,0.00013026,2]
[421450701,1777674631000,-605.0,0.00013026,2]
[421450700,1777674631000,-600.17823822,0.00013026,2]
[421450704,1777674631000,-1000.0,0.00013699,2]
[421450706,1777674631000,-200.0,0.00014034,2]
[421450709,1777674631000,-4520.95028264,0.00014374,2]
[421450710,1777674631000,-3672.63190408,0.00014445,2]
[421450711,1777674631000,-5533.21950213,0.00014445,2]
[421450705,1777674631000,-213.749435,0.00013921,2]
[421450703,1777674631000,-1000.0,0.00013699,2]
[421450707,1777674631000,-536.2,0.00014037,2]
[421450708,1777674631000,-300.0,0.00014373,2]
[421450756,1777674639000,-524837.03501131,0.00014446,2]
[421450755,1777674639000,-33147.38516913,0.00014446,2]
[421450753,1777674639000,-168.1,0.00014034,2]
[421450754,1777674639000,-855.13826681,0.00014445,2]
[421450832,1777675582000,6129.92,0.00021918,120]
[421450895,1777675832000,-151.0,0.00013652,2]
[421450877,1777675832000,-3963.07714896,0.00012897,2]
[421450885,1777675832000,-376.08712494,0.00012897,2]
[421450879,1777675832000,-200.91287506,0.00012897,2]
[421450887,1777675832000,-192.51860279,0.0001312,2]
[421450891,1777675832000,-151.0,0.00013652,2]
[421450889,1777675832000,-300.0,0.00013651,2]
[421450893,1777675832000,-151.0,0.00013652,2]
[421450897,1777675832000,-456.1217259,0.00013652,2]
[421450903,1777675832000,-1000.0,0.00013699,2]
[421450909,1777675832000,-500.0,0.00014245,2]
[421450901,1777675832000,-456.0872351,0.00013652,2]
[421450905,1777675832000,-273.17522513,0.00014059,2]
[421450908,1777675832000,-124.18977487,0.00014059,2]
[421450912,1777675832000,-500.0,0.00014245,2]
[421450913,1777675832000,-247.24210071,0.00014245,2]
[421450915,1777675832000,-365.93823579,0.00014245,2]
[421450899,1777675832000,-456.0872351,0.00013652,2]
[421450941,1777675838000,-500.0,0.00014245,2]
[421450945,1777675838000,-500.0,0.00014245,2]
[421450940,1777675838000,-500.0,0.00014245,2]
[421450948,1777675838000,-500.0,0.00014245,2]
[421450943,1777675838000,-500.0,0.00014245,2]
[421450936,1777675838000,-500.0,0.00014245,2]
[421450942,1777675838000,-500.0,0.00014245,2]
[421450938,1777675838000,-500.0,0.00014245,2]
[421450934,1777675838000,-500.0,0.00014245,2]
[421450932,1777675838000,-134.06176421,0.00014245,2]
[421450944,1777675838000,-500.0,0.00014245,2]
[421450946,1777675838000,-498.06718146,0.00014245,2]
[421450939,1777675838000,-500.0,0.00014245,2]
[421450950,1777675838000,-525.03550992,0.00014245,2]
[421450947,1777675838000,-500.0,0.00014245,2]
[421450963,1777675838000,-417924.11916997,0.00014246,2]
[421450962,1777675838000,-19432.43350424,0.00014246,2]
[421450959,1777675838000,-500.0,0.00014245,2]
[421450958,1777675838000,-500.0,0.00014245,2]
[421450957,1777675838000,-500.0,0.00014245,2]
[421450961,1777675838000,-2691.89420695,0.00014246,2]
[421450949,1777675838000,-500.0,0.00014245,2]
[421450956,1777675838000,-578.74381931,0.00014245,2]
[421450960,1777675838000,-500.0,0.00014245,2]
[421450951,1777675838000,-500.0,0.00014245,2]
[421450955,1777675838000,-500.0,0.00014245,2]
[421450952,1777675838000,-500.0,0.00014245,2]
[421450954,1777675838000,-500.0,0.00014245,2]
[421450968,1777675840000,-475.5589574,0.00014246,2]
[421451004,1777675843000,-4183.23342781,0.00014246,2]
[421451003,1777675843000,-3928.60947472,0.00014246,2]
[421451002,1777675843000,-6264.6768635,0.00014246,2]
[421451001,1777675843000,-8545.19668423,0.00014246,2]
[421451000,1777675843000,-1149.210458,0.00014246,2]
[421450998,1777675843000,-26064.12341471,0.00014246,2]
[421450999,1777675843000,-5029.77788828,0.00014246,2]
[421451016,1777675846000,-325.94245629,0.00014245,2]
[421451020,1777675846000,-185.62060994,0.00014245,2]
[421451018,1777675846000,-500.0,0.00014245,2]
[421451055,1777675846000,-153.99481551,0.00014245,2]
[421451057,1777675846000,-50165.79559998,0.00014246,2]
[421451078,1777676170000,234.21062703,0.0002061,120]
[421451113,1777677032000,-500.0,0.00014044,2]
[421451111,1777677032000,-500.0,0.00014044,2]
[421451112,1777677032000,-500.0,0.00014044,2]
[421451110,1777677032000,-334.0279395,0.00014044,2]
[421451108,1777677032000,-500.0,0.00014044,2]
[421451109,1777677032000,-302.58061624,0.00014044,2]
[421451106,1777677032000,-10511.03113711,0.00013946,2]
[421451107,1777677032000,-500.0,0.00014044,2]
[421451101,1777677032000,-300.0,0.0001382,2]
[421451104,1777677032000,-5000.0,0.00013821,2]
[421451102,1777677032000,-5000.0,0.00013821,2]
[421451094,1777677032000,-325.5777581,0.0001283,2]
[421451099,1777677032000,-1000.0,0.00013699,2]
[421451103,1777677032000,-5000.0,0.00013821,2]
[421451095,1777677032000,-602.0,0.0001283,2]
[421451105,1777677032000,-4633.73466399,0.00013945,2]
[421451096,1777677032000,-200.62777061,0.00013264,2]
[421451097,1777677032000,-156.0,0.00013699,2]
[421451098,1777677032000,-1000.0,0.00013699,2]
[421451114,1777677032000,-500.0,0.00014044,2]
[421451093,1777677032000,-738.9052007,0.00012702,2]
[421451092,1777677032000,-376.99730119,0.00012702,2]
[421451090,1777677032000,-399.29698368,0.00012702,2]
[421451091,1777677032000,-2149.01028481,0.00012702,2]
[421451100,1777677032000,-500.0,0.0001382,2]
[421451115,1777677032000,-500.0,0.00014044,2]
[421451119,1777677032000,-500.0,0.00014044,2]
[421451118,1777677032000,-500.0,0.00014044,2]
[421451116,1777677032000,-500.0,0.00014044,2]
[421451141,1777677032000,-923.37635892,0.00014044,2]
[421451140,1777677032000,-923.37635892,0.00014044,2]
[421451137,1777677032000,-862.96855974,0.00014044,2]
[421451142,1777677032000,-25002.85728479,0.00014045,2]
[421451139,1777677032000,-923.37635892,0.00014044,2]
[421451135,1777677032000,-862.96855974,0.00014044,2]
[421451138,1777677032000,-923.37635892,0.00014044,2]
[421451136,1777677032000,-862.96855974,0.00014044,2]
[421451144,1777677032000,-4240.55941701,0.00014045,2]
[421451134,1777677032000,-862.96855974,0.00014044,2]
[421451143,1777677032000,-2827.36086046,0.00014045,2]
[421451132,1777677032000,-862.96855974,0.00014044,2]
[421451117,1777677032000,-500.0,0.00014044,2]
[421451131,1777677032000,-862.96855974,0.00014044,2]
[421451126,1777677032000,-862.96855974,0.00014044,2]
[421451128,1777677032000,-862.96855974,0.00014044,2]
[421451127,1777677032000,-862.96855974,0.00014044,2]
[421451129,1777677032000,-862.96855974,0.00014044,2]
[421451130,1777677032000,-862.96855974,0.00014044,2]
[421451125,1777677032000,-500.0,0.00014044,2]
[421451123,1777677032000,-451.32060479,0.00014044,2]
[421451122,1777677032000,-500.0,0.00014044,2]
[421451120,1777677032000,-500.0,0.00014044,2]
[421451124,1777677032000,-500.0,0.00014044,2]
[421451133,1777677032000,-862.96855974,0.00014044,2]
[421451121,1777677032000,-500.0,0.00014044,2]
[421451150,1777677038000,-46588.51305982,0.00014045,2]
[421451152,1777677038000,-6100.04329361,0.00014045,2]
[421451151,1777677038000,-2028.97951315,0.00014045,2]
[421451153,1777677038000,-621409.52674694,0.00014045,2]
[421451165,1777677043000,-372.15593265,0.00014043,2]
[421451163,1777677043000,-500.0,0.00014043,2]
[421451164,1777677043000,-175.41597992,0.00014043,2]
[421451168,1777677046000,-127.84406735,0.00014043,2]
[421451172,1777677046000,-426.28855298,0.00014045,2]
[421451171,1777677046000,-14484.31459406,0.00014045,2]
[421451169,1777677046000,-500.0,0.00014043,2]
[421451170,1777677046000,-518.04133859,0.00014043,2]
[421451174,1777677046000,-386896.17481249,0.00014045,2]
[421451173,1777677046000,-1405.14528569,0.00014045,2]
[421451190,1777677929000,167.0,0.0001892,120]
[421451191,1777677930000,167.0,0.00019866,120]
[421451196,1777677932000,167.0,0.00020859,120]
[421451197,1777677933000,167.0,0.00021902,120]
[421451208,1777678232000,-808.52906721,0.00011372,2]
[421451237,1777678238000,-2942.81540131,0.00011372,2]
[421451243,1777678238000,-212.89905405,0.00011779,2]
[421451239,1777678238000,-1464.12557081,0.00011487,2]
[421451241,1777678238000,-796.90981245,0.00011603,2]
[421451245,1777678239000,-4360.77286573,0.00013598,2]
[421451268,1777678239000,-478.85715799,0.00013645,2]
[421451266,1777678239000,-950.54447648,0.00013645,2]
[421451260,1777678239000,-4390.78716792,0.00013645,2]
[421451258,1777678239000,-4139.67013678,0.00013645,2]
[421451252,1777678239000,-270424.49839065,0.00013645,2]
[421451251,1777678239000,-333.0,0.00013644,2]
[421451249,1777678239000,-300.0,0.00013644,2]
[421451247,1777678239000,-300.0,0.00013644,2]
[421451515,1777678242000,-2284.60625744,0.00013645,2]
[421451550,1777678243000,-431.83675393,0.00013645,2]
[421451548,1777678243000,-2244.0,0.00013645,2]
[421451534,1777678243000,-78198.86173871,0.00013645,2]
[421451990,1777678247000,-110350.76799958,0.00013645,2]
[421451992,1777678247000,-300.0,0.00013645,2]
[421451988,1777678247000,-500.0,0.00013,2]
[421452322,1777678911000,160.0,7.17e-05,2]
[421452342,1777679431000,-225.84123405,0.0001351,2]
[421452344,1777679431000,-163.98565674,0.00013544,2]
[421452343,1777679431000,-336.01434326,0.00013544,2]
[421452346,1777679431000,-500.0,0.00013544,4]
[421452345,1777679431000,-500.0,0.00013544,3]
[421452348,1777679431000,-500.0,0.00013544,6]
[421452349,1777679431000,-500.0,0.00013544,7]
[421452347,1777679431000,-500.0,0.00013544,5]
[421452352,1777679431000,-500.0,0.00013544,10]
[421452351,1777679431000,-500.0,0.00013544,9]
[421452354,1777679431000,-500.0,0.00013544,12]
[421452353,1777679431000,-500.0,0.00013544,11]
[421452355,1777679431000,-67.23615311,0.00013544,13]
[421452350,1777679431000,-500.0,0.00013544,8]
[421452409,1777679444000,-824.52938913,0.00013543,2]
[421452417,1777679444000,-167.96905846,0.00013543,2]
[421452416,1777679444000,-824.52938913,0.00013543,2]
[421452414,1777679444000,-824.52938913,0.00013543,2]
[421452415,1777679444000,-500.0,0.00013543,2]
[421452413,1777679444000,-824.52938913,0.00013543,2]
[421452411,1777679444000,-824.52938913,0.00013543,2]
[421452410,1777679444000,-500.0,0.00013543,2]
[421452408,1777679444000,-824.52938913,0.00013543,2]
[421452398,1777679444000,-281.91199153,0.00013543,2]
[421452406,1777679444000,-281.53481646,0.00013543,2]
[421452404,1777679444000,-824.52938913,0.00013543,2]
[421452405,1777679444000,-824.52938913,0.00013543,2]
[421452401,1777679444000,-824.52938913,0.00013543,2]
[421452403,1777679444000,-231.23100294,0.00013543,2]
[421452402,1777679444000,-824.52938913,0.00013543,2]